Cogmind - Beta 13 @@@ ROGUE MODE // 2024.07.07 @ 22:49:17 Player: APerTAS Result: Core destroyed Performance ------------- Evolutions (0) 0 Regions Visited (2) 400 Robots Destroyed (11) 55 Value Destroyed (116) 116 Prototype IDs (0) 0 Alien Tech Used (0) 0 Bonus (0) 0 TOTAL SCORE: 571 Bonus ------- None Cogmind --------- Core Integrity 0/250 Matter 300/300 Energy 100/100 System Corruption 28% Temperature Cool (0) Movement Core (50) Location -10/Mines Parts ------- > --- POWER (1) -------- (None) > --- PROPULSION (2) --- (None) > --- UTILITY (2) ------ (None) > --- WEAPON (2) ------- (None) > --- INVENTORY (5) ---- (None) Peak State ------------ > --- POWER ------------ Light Ion Engine > --- PROPULSION ------- Wheel Wheel > --- UTILITY ---------- Small Storage Unit Seismic Detector > --- WEAPON ----------- Mining Laser Mining Laser > --- INVENTORY -------- Compact Wheel Compact Wheel Assault Rifle [Rating: 7] Favorites ----------- Power Light Ion Engine Engine Light Ion Engine Propulsion Wheel Wheel Wheel Utility Seismic Detector Device Seismic Detector Storage Small Storage Unit Weapon Mining Laser Energy Gun EM Pulse Gun Ballistic Gun Assault Rifle Special Weapon Mining Laser Build | -11 -10 -10 ------- Run | Yrd Mat Min Slots Evolved . | . . . Power . | . . . Propulsion . | . . . Utility . | . . . Weapon . | . . . Parts Attached 19 | 11 4 4 Power 2 | 1 . 1 Engine 2 | 1 . 1 Core . | . . . Reactor . | . . . Propulsion 6 | 4 . 2 Treads . | . . . Leg . | . . . Wheel 6 | 4 . 2 Hover . | . . . Flight . | . . . Utility 2 | 2 . . Device 1 | 1 . . Storage 1 | 1 . . Processor . | . . . Hackware . | . . . Protection . | . . . Artifact . | . . . Weapon 9 | 4 4 1 Energy Gun 1 | 1 . . Energy Cannon . | . . . Ballistic Gun 1 | 1 . . Ballistic Cannon . | . . . Launcher . | . . . Special Weapon 7 | 2 4 1 Impact Weapon . | . . . Slashing Weapon . | . . . Piercing Weapon . | . . . Special Melee Weapon . | . . . Unidentified Prototypes . | . . . Parts Lost 4 | . . 4 Power 1 | . . 1 Propulsion 2 | . . 2 Utility . | . . . Weapon 1 | . . 1 Highest Loss Streak 4 | . . 4 To Critical Strikes . | . . . Average Slot Usage (%) 74 | . 100 62 Engine 10 | . 14 8 Wheel 20 | . 28 17 Device 10 | . 14 9 Storage 10 | . 14 9 Special Weapon 20 | . 26 17 Naked Turns 201 | . . 201 Heaviest Build 13 | 13 13 13 Greatest Support 32 | 32 20 32 Greatest Overweight (x) 4 | . . 4 Average Overweight (x) . | . . . Largest Inventory Capacity 8 | 8 8 8 Average Capacity 6 | 5 8 6 Most Carried 8 | 7 8 8 Average Carried 4 | 1 7 4 Final Capacity 8 | 8 8 5 Final Carried 8 | 6 8 . Class Distribution -------------------- 80% | Scavenger-Mutant 19% | Mutant Dominant Class ---------------- Scavenger-Mutant | -10/Materials Scavenger-Mutant | -10/Mines Resources | -11 -10 -10 ----------- Run | Yrd Mat Min Matter Collected 321 | 262 27 32 Remotely . | . . . Salvage Created 453 | 128 27 298 Parts 38 | 12 4 22 Haulers Intercepted . | . . . Recyclers Shooed 1 | . . 1 Parts Field Recycled . | . . . Retrieved Matter . | . . . Parts Self-Destructed . | . . . Prevented . | . . . Kills | -11 -10 -10 ------- Run | Yrd Mat Min Combat Hostiles Destroyed . | . . . Classes Destroyed 4 | 3 1 . Worker 2 | 1 . 1 Builder 3 | . 1 2 Tunneler 3 | 2 . 1 Recycler 3 | 1 . 2 Best Kill Streak 3 | 1 1 3 Combat Bots Only . | . . . Max Kills in Single Turn 1 | 1 1 1 Gunslinging . | . . . Exploded . | . . . Melee . | . . . Uniques/NPCs Destroyed . | . . . Combat | -11 -10 -10 -------- Run | Yrd Mat Min Hostile Shots Fired 2 | . . 2 Missed 2 | . . 2 Damage Taken 683 | 40 118 525 Core 250 | 32 12 206 Absorbed by Shields . | . . . Core Remaining (%) 87 | 87 . . Volleys Fired 44 | 5 26 13 Largest 2 | 1 2 2 Hottest 200 | 100 200 200 Shots Fired 78 | 5 52 21 Gun 8 | . 8 . Cannon . | . . . Launcher . | . . . Special 70 | 5 44 21 Kinetic 4 | . 4 . Thermal 70 | 5 44 21 Explosive . | . . . Electromagnetic 4 | . 4 . Robot Hit Streak 3 | 3 3 . Robot Miss Streak 1 | 1 . . Penetration Max . | . . . Secondary Targets . | . . . Shots Hit Robots 6 | 4 2 . Core Hits 51 | 16 2 33 Critical Kills . | . . . Critical Parts Destroyed . | . . . Critical Strikes . | . . . Melee Attacks . | . . . Impact . | . . . Slashing . | . . . Piercing . | . . . Sneak Attacks . | . . . Combat Hostiles . | . . . Follow-up Attacks . | . . . Damage Inflicted 537 | 143 70 324 Guns . | . . . Cannons . | . . . Explosions 36 | . 36 . Melee . | . . . Ramming 379 | 47 8 324 Kinetic . | . . . Thermal 122 | 96 26 . Explosive . | . . . Electromagnetic 36 | . 36 . Impact . | . . . Slashing . | . . . Piercing . | . . . Highest Corruption 28 | 3 3 28 Average Corruption 10 | 1 3 16 Corruption Purged . | . . . Corruption Blocked . | . . . Effects 30 | 2 7 21 Message Errors 5 | . 2 3 Matter Fused 6 | 1 1 4 Heat Flow Errors 3 | . . 3 Energy Discharges 5 | . 1 4 Parts Fused 1 | . . 1 Data Loss (minor) 7 | 1 2 4 Data Loss (major) 2 | . 1 1 Misdirections 1 | . . 1 Overload Shots . | . . . Overflow Damage . | . . . Projectiles . | . . . Explosions . | . . . Melee . | . . . Knockbacks 2 | . . 2 Impact 2 | . . 2 Kinetic . | . . . Secondary . | . . . Self-Inflicted Damage 251 | 18 89 144 Shots 2 | . 2 . Rammed 126 | 22 1 103 Targets Rammed 126 | 22 1 103 Kicked . | . . . Crushed . | . . . Highest Temperature 214 | 60 112 214 Average Temperature 52 | 25 36 78 Received Heat Transfer . | . . . Siege Activations . | . . . Robots Corrupted . | . . . Combat Hostiles . | . . . Parts Fried . | . . . Impact Corruptions . | . . . Robots Melted . | . . . Combat Hostiles . | . . . Parts Melted . | . . . Heat Transferred 275 | 200 75 . Parts Sabotaged . | . . . Parts Stolen . | . . . Parts Stripped . | . . . Power Chain Reactions . | . . . Alert | -11 -10 -10 ------- Run | Yrd Mat Min Peak Influence 97 | 20 97 72 Initial 37 | . 13 37 Average 39 | 12 59 42 Maximum Alert Level . | . . . Low Security (%) 100 | 100 100 100 Level 1 . | . . . Level 2 . | . . . Level 3 . | . . . Level 4 . | . . . Level 5 . | . . . High Security . | . . . Max Security . | . . . Squads Dispatched 1 | . 1 . Investigation . | . . . Extermination . | . . . Reinforcement 1 | . 1 . Assault . | . . . Garrison . | . . . Intercept . | . . . Searches Triggered . | . . . Construction Impeded . | . . . Haulers Reinforced . | . . . Active Scanning Responses . | . . . Cargo Convoy Interrupts . | . . . Stealth | -11 -10 -10 --------- Run | Yrd Mat Min Distress Signals . | . . . Communications Jammed . | . . . Distress Signals . | . . . Times Spotted 4 | . 2 2 Peak Tracking Total 2 | . 1 2 Tactical Retreats 1 | . . 1 Traps | -11 -10 -10 ------- Run | Yrd Mat Min Traps Triggered 1 | . 1 . Indirectly . | . . . Trap Hack Attempts . | . . . Triggered . | . . . Disarmed . | . . . Reprogrammed . | . . . Reused . | . . . Traps Extracted . | . . . Installed . | . . . Triggered 1 | . . 1 Most Traps Carried 1 | . . 1 Machines | -11 -10 -10 ---------- Run | Yrd Mat Min Machines Disabled 6 | . 4 2 Max in Single Turn 1 | . 1 1 Machines Repaired . | . . . Machines Dismantled . | . . . Machines Sabotaged . | . . . Overloaded Fab Kills . | . . . Hacking | -11 -10 -10 --------- Run | Yrd Mat Min Machines Accessed . | . . . Terminals . | . . . Fabricators . | . . . Repair Stations . | . . . Recycling Units . | . . . Scanalyzers . | . . . Garrison Access . | . . . Total Hacks . | . . . Successful . | . . . Failed . | . . . Catastrophic . | . . . Database Lockouts . | . . . Manual . | . . . Terminals . | . . . Fabricators . | . . . Repair Stations . | . . . Recycling Units . | . . . Scanalyzers . | . . . Garrison Access . | . . . Terminal Hacks . | . . . Fabricator Hacks . | . . . Repair Station Hacks . | . . . Recycling Unit Hacks . | . . . Scanalyzer . | . . . Garrison Access Hacks . | . . . Unauthorized Hacks . | . . . Terminals . | . . . Fabricators . | . . . Repair Stations . | . . . Recycling Units . | . . . Scanalyzers . | . . . Garrison Access . | . . . Data Cores Recovered . | . . . Used . | . . . Hacking Detections . | . . . Full Trace Events . | . . . Feedback Events . | . . . Feedback Blocked . | . . . Robot Schematics Acquired . | . . . Robots Built . | . . . Authchips . | . . . Time . | . . . Total Robot Build Rating . | . . . Part Schematics Acquired . | . . . Parts Built . | . . . Authchips . | . . . Time . | . . . Total Part Build Rating . | . . . Parts Repaired . | . . . Time . | . . . Parts Recycled . | . . . Recycled Matter . | . . . Retrieved Matter . | . . . Retrieved Components . | . . . Parts Scanalyzed . | . . . Part Schematics Acquired . | . . . Parts Damaged . | . . . Bothacking | -11 -10 -10 ------------ Run | Yrd Mat Min Used RIF Installer . | . . . Robots Hacked . | . . . Non-combat . | . . . Combat . | . . . Robot Hacks Applied . | . . . Relay Couplers Released . | . . . Fabnet Peak Effective % . | . . . Robots Rewired . | . . . Allies Hacked . | . . . Hacks Repelled . | . . . Allies | -11 -10 -10 -------- Run | Yrd Mat Min Total Allies 3 | . . 3 Largest Group 3 | . . 3 Highest-Rated Group 40 | . . 40 Highest-Rated Ally 16 | . . 16 Total Orders . | . . . Ally Attacks 9 | . . 9 Total Damage 112 | . . 112 Kills . | . . . Allies Corrupted . | . . . Allies Melted . | . . . Intel | -11 -10 -10 ------- Run | Yrd Mat Min Robot Analysis Total . | . . . Derelict Logs Recovered 1 | . . 1 Drone Launches . | . . . Drone Recoveries . | . . . Exploration | -11 -10 -10 ------------- Run | Yrd Mat Min Turns Passed 1091 | 248 278 565 Spaces Moved 904 | 213 158 533 Core 334 | 47 . 287 Treads . | . . . Legs . | . . . Wheels 570 | 166 158 246 Hover . | . . . Flight . | . . . Fastest Speed 50 | 50 80 50 Average Speed 73 | 83 80 68 Slowest Speed 250 | 100 80 250 Overloaded Moves . | . . . Propulsion Burnouts . | . . . Robots Hopped . | . . . Cave-ins Triggered 1 | . . 1 Exploration Rate (%) 31 | 6 24 64 Regions Visited 2 Branch Regions 1 Pre-discovered Areas . | . . . Known Exits Taken . | . . . Unknown Exits Taken 2 | 1 1 . Scrap Searched . | . . . Spaces Dug 16 | . . 16 Terrain Destroyed 19 | . 3 16 Melee . | . . . Projectile 19 | . 3 16 AOE . | . . . Terrain Rammed . | . . . Walls Destroyed . | . . . Machines Disabled . | . . . Actions | -11 -10 -10 --------- Run | Yrd Mat Min Total 1128 | 267 190 671 Wait 6 | . . 6 Move 902 | 212 157 533 Hop . | . . . Pick Up 18 | 15 2 1 Fast Attach . | . . . Attach 11 | 7 . 4 Detach . | . . . Swap 8 | 4 4 . Drop 14 | 2 . 12 Fire 44 | 5 26 13 Melee . | . . . Ram 125 | 22 1 102 Kick . | . . . Crush . | . . . Escape Stasis . | . . . Rewire . | . . . Trap . | . . . Miscellaneous . | . . . Route ------- -11/Scrapyard -10/Materials -10/Mines History --------- Turn | Location | Event 5 | -11/Scrapyard | Discovered new exit (range 13) 249 | -11/Scrapyard | Entered Materials 308 | -10/Materials | Build established: Scavenger-Mutant 515 | -10/Materials | Discovered new exit (range 13) 527 | -10/Materials | Entered Mines 559 | -10/Mines | Met a Derelict bent on vengeance 672 | -10/Mines | Assisted by bots powering up and referring to "LRC-V3" 727 | -10/Mines | Crushed by falling debris 727 | -10/Mines | System corruption reached 10% 755 | -10/Mines | Found a hidden stash of uninstalled traps 758 | -10/Mines | Lost 4 parts (1p2n1w) 912 | -10/Mines | Core integrity fell below 50% 1055 | -10/Mines | Core integrity fell below 20% 1092 | -10/Mines | Core destroyed Last Messages --------------- Slammed into U-05 Engineer. Destabilizing: Core damaged (-5). RMQP7FBDKMQOHX=ITBOINRGGYRFV3N3 Slammed into U-05 Engineer. Destabilizing: Core damaged (-7). Slammed into U-05 Engineer. Destabilizing: Core damaged (-10). Slammed into U-05 Engineer. U-05 Engineer knocked back. Destabilizing: System corrupted (+1). Slammed into U-05 Engineer. U-05 Engineer destroyed. Slammed into R-06 Scavenger. System corrupted: Component data lost. Slammed into R-06 Scavenger. Destabilizing: System corrupted (+1). Slammed into R-06 Scavenger. U-05 Engineer lays Concrete. Slammed into R-06 Scavenger. R-06 Scavenger destroyed. Map ----- +----------------------------------------------------+ | ?????????????????????????????????????????????????? | | ?????????????????????????????????????????????????? | | ?????????????????????????????????????????????????? | | ?????????????????????????????????????????????????? | | ?????????????????????????????????????????????????? | | ?????????????????????????????????????????????????? | | ?????????????????????????????????????????????????? | | ?????????????????????????????????????????????????? | | ?????????????????????????????????????????????????? | | ?????????????????????????????????????????????????? | | ??????????????????????????????????????############ | | ??????????????????????????????????????# | | ?????????????????????????????????####?# ########## | | ????????????????????????????????## ### #????????? | | ???????????????????????????????## #??????### | | ???????????????????#????????#### ####??????# | | ???????????????????# ??????## ##?????????# # | | ???????????????????# ?????## ####???######## # | | ???????????????????# ???## ##?###### # | | ???????????????????# #### #?## ## ###### # | | ???????????????????# % ### ##???# # | | ???????????????????# % ### #???# # | | ???????????????????#### g*= ##### #??## # | | ??????????????????????##%!=##### #???# | | ??????????????????????#!%%%^!;## #???# | | ??????????????????????#=%@*| ## #???# | | ??????????????????????#%=%!= ## #???# | | ???????????????????####%# % ## #????# | | ??????????????????## ## % # #?????# | | ????????????????### % % % % #?????# " | | ???????????????## != % %% %%% ##????# "" | | ????????????#### !%| % % % % ##???# | | ???????????## %%* % %[ ## ##### "" | | ???????????#% %% % #### # " | | ???????????#% % ##??## #### # "" | | ???????????## % %%%! ##????## ###??# # | | ????????????#### % %% ####??????####????# # | | ??????????????## % ##?????????????????# #### | | ????????????### %% ##??????????????????# % | | ???????????## %% ###???????????????????###### | | ???????????# ##??????????????????????????# | | ???????????#*|= ######??????????????????????????## | | ???????????##%=!#??????????????????????????????## | | ?????????#####! #?????????????????????????????## | | ????????## ## #?????????????????????????????# !% | | ???????## % #?????????????????????????????# | | ??????## ####?????????????????????????????# # | | ?????## #########??????????????########### # | | ###### # #??????????????# %% # | | #??????????????# ######### # | +----------------------------------------------------+ Best States ------------- Heat Dissipation 25 Energy Generation 10 Energy Capacity 250 Matter Stores 300 Matter Capacity 300 Sight Range 16 Terrain Scan Density 10 Evasion (%) 50 Item Schematics ----------------- None Robot Schematics ------------------ None Fabricated ------------ Nothing Alien Tech Used ----------------- None Achievements -------------- System Compromised Unlikely Earthworm Challenges ------------ None Game ------ Seed LongswordTacticalDoomcannon Manual? 0 Play Time 00:19:57 Cumulative 5.2 hours Start 2024.07.07 @ 22:36:11 End 2024.07.07 @ 22:49:17 Sessions 1 Manual Loads 0 Difficulty Rogue Special Mode None Game No. 10 Rogue 10 Adventurer 0 Explorer 0 Win Type - Total 0 Types 0/0/0/0/0/0/0/0/0 Lore% 10 Gallery% 7 Achievement% 8 Wizard Run 0 Options --------- Layout 1 ASCII 0 Keyboard 0 Movement Arrows Keybinds 0 Fullscreen 1 Font 28/Dina Map View 50x43 Zoom Use 0% Tactical HUD 0 Map Filters NONE Filters NONE Steam 1 RUN: 9f7c39d3-d923-4aae-a65d-05b7b70a9dda